bitfinex-derivatives/quotes_SOLF0:USTF0_20250509
["timestamp","ask_amount","ask_price","bid_price","bid_amount"]
[1746775527629,40.26,165.2,165.14,1.0]
[1746775528132,40.26,165.2,165.14,7.0554]
[1746775528626,40.26,165.2,165.14,1.0]
[1746775529228,46.3136,165.2,165.14,7.0557]
[1746775529423,40.26,165.2,165.14,1.0]
[1746775529623,40.26,165.21,165.14,1.0]
[1746775529828,80.54,165.21,165.14,1.0]
[1746775530528,86.5934,165.21,165.15,6.0553]
[1746775530728,80.54,165.21,165.14,1.0]
[1746775530928,6.054,165.19,165.14,1.0]
[1746775531132,80.54,165.21,165.14,1.0]
[1746775531728,6.0554,165.15,165.14,1.0]
[1746775532025,86.6354,165.15,165.14,0.5382]
[1746775532531,80.58,165.15,165.14,0.5382]
[1746775532731,40.3,165.15,165.14,0.5382]
[1746775532930,86.6354,165.15,165.14,0.5382]
[1746775534237,609.8554,165.15,165.14,0.5382]
[1746775536940,603.8,165.15,165.14,0.5382]
[1746775539136,563.52,165.15,165.14,0.5382]
[1746775539433,603.8,165.15,165.14,0.5382]
[1746775541741,523.22,165.15,165.14,0.5382]
[1746775542934,523.22,165.15,165.14,6.5939]
[1746775543139,40.26,165.2,165.14,0.5382]
[1746775543338,80.52,165.21,165.16,6.055]
[1746775543535,80.52,165.21,165.14,0.5382]
[1746775543736,6.054,165.19,165.14,0.5382]
[1746775543938,80.52,165.21,165.14,0.5382]
[1746775544338,6.0538,165.2,165.14,0.5382]
[1746775544843,6.0538,165.2,165.15,6.0553]
[1746775545035,6.054,165.19,165.14,0.5382]
[1746775545743,6.0536,165.2,165.14,0.5382]
[1746775546041,80.52,165.21,165.14,0.5382]
[1746775546342,6.0536,165.2,165.14,0.5382]
[1746775546648,80.52,165.21,165.14,0.5382]
[1746775546836,40.26,165.2,165.14,0.5382]
[1746775547042,523.34,165.24,165.14,0.5382]
[1746775547242,80.52,165.23,165.14,0.5382]
[1746775548342,40.26,165.23,165.14,0.5382]
[1746775548537,6.0532,165.21,165.14,0.5382]
[1746775548737,6.0532,165.21,165.17,6.0543]
[1746775549136,40.24,165.22,165.14,0.5382]
[1746775549340,40.26,165.23,165.14,0.5382]
[1746775549939,40.26,165.23,165.21,6.0529]
[1746775550138,40.26,165.23,165.15,1.9819]
[1746775550537,359.365,165.27,165.15,1.9819]
[1746775551033,40.26,165.27,165.15,1.9819]
[1746775551944,46.3112,165.27,165.15,1.9819]
[1746775552240,40.26,165.27,165.22,6.0527]
[1746775552547,40.26,165.27,165.17,40.24]
[1746775552744,40.26,165.27,165.21,6.0529]
[1746775553042,6.0516,165.26,165.21,6.0529]
[1746775553246,40.26,165.27,165.19,6.0536]
[1746775553449,6.0522,165.24,165.18,4.0226]
[1746775553745,40.26,165.27,165.2,6.0532]
[1746775553938,40.26,165.27,165.18,4.0226]
[1746775554146,40.26,165.27,165.18,1.9975]
[1746775554343,40.26,165.27,165.19,6.0536]
[1746775554543,6.0518,165.25,165.18,1.9975]
[1746775554742,40.26,165.27,165.18,1.9975]
[1746775554944,40.26,165.27,165.22,6.0527]
[1746775555248,40.26,165.27,165.18,1.9975]
[1746775555440,40.24,165.27,165.18,1.9975]
[1746775556048,40.24,165.27,165.21,6.0529]
[1746775556243,6.052,165.25,165.21,6.0529]
[1746775556546,40.24,165.27,165.21,6.0529]
[1746775556747,40.24,165.27,165.18,1.9975]
[1746775556949,6.0522,165.24,165.18,1.9975]
[1746775557150,40.24,165.27,165.18,1.9975]
[1746775557343,40.24,165.27,165.21,6.0529]
[1746775557848,40.24,165.27,165.18,1.9975]
[1746775558048,6.0518,165.25,165.18,1.9975]
[1746775558346,40.24,165.27,165.2,6.0532]
[1746775558646,6.0514,165.26,165.18,1.9975]
[1746775558846,6.0514,165.26,165.22,6.0526]
[1746775559450,40.24,165.27,165.18,1.9975]
[1746775559749,40.24,165.27,165.18,11.50138762]
[1746775560349,40.24,165.27,165.18,1.9975]
[1746775561148,6.0524,165.23,165.18,1.9975]
[1746775561352,40.18,165.26,165.15,1.9819]
[1746775562750,40.18,165.26,165.18,6.054]
[1746775562751,6.0522,165.24,165.18,6.054]
[1746775563252,40.18,165.26,165.15,1.9819]
[1746775563853,40.18,165.26,165.19,6.0536]
[1746775564050,40.18,165.26,165.15,1.9819]
[1746775564351,6.0522,165.24,165.15,1.9819]
[1746775564556,40.18,165.26,165.15,1.9819]
[1746775564948,319.105,165.28,165.15,1.9819]
[1746775565150,40.24,165.27,165.15,1.9819]
[1746775565353,40.24,165.27,165.16,9.50388762]
[1746775565953,40.24,165.27,165.15,1.9819]
[1746775566257,40.24,165.27,165.18,1.0]
[1746775567154,6.0519,165.25,165.21,6.0529]
[1746775567554,40.24,165.27,165.18,1.0]
[1746775568152,6.0514,165.26,165.22,6.0527]
[1746775568455,40.24,165.25,165.18,1.0]
[1746775568756,6.0527,165.23,165.18,7.0542]
[1746775568956,40.24,165.25,165.18,1.0]
[1746775569657,6.0524,165.24,165.19,6.0536]
[1746775569861,40.24,165.25,165.18,1.0]
[1746775570155,46.2919,165.25,165.2,6.0533]
[1746775570459,40.24,165.25,165.18,1.0]
[1746775570657,6.0523,165.24,165.19,6.0535]
[1746775570857,40.24,165.25,165.18,1.0]
[1746775571353,40.24,165.25,165.21,6.0531]
[1746775571758,40.24,165.25,165.18,1.0]
[1746775571959,46.292,165.25,165.19,6.0538]
[1746775572257,46.292,165.25,165.18,1.0]
[1746775572457,46.292,165.25,165.21,6.0531]
[1746775572458,40.24,165.25,165.21,6.0531]
[1746775572658,40.24,165.25,165.18,1.0]
[1746775572961,46.2918,165.25,165.2,6.0535]
[1746775573359,40.24,165.25,165.18,1.0]
[1746775573556,40.24,165.25,165.2,6.0533]
[1746775573758,40.24,165.25,165.18,1.0]
[1746775574152,86.4317,165.25,165.2,6.0533]
[1746775574559,86.4317,165.25,165.2,6.0535]
[1746775574758,6.0521,165.24,165.2,6.0535]
[1746775574957,40.24,165.25,165.18,1.0]
[1746775575357,40.24,165.25,165.2,6.0535]
[1746775575556,40.24,165.25,165.18,1.0]
[1746775575759,40.24,165.25,165.2,6.0535]
[1746775575961,40.24,165.25,165.18,1.0]
[1746775576857,40.24,165.25,165.2,6.0535]
[1746775577152,40.24,165.25,165.18,1.0]
[1746775577459,40.24,165.25,165.22,6.0525]
[1746775578355,40.24,165.25,165.23,6.0524]
[1746775578661,40.24,165.25,165.18,1.0]
[1746775579664,40.24,165.25,165.24,6.0521]
[1746775580360,40.24,165.25,165.18,1.0]
[1746775580361,40.24,165.25,165.23,6.0523]
[1746775580662,40.24,165.25,165.18,1.0]
[1746775581161,40.12,165.24,165.18,1.0]
[1746775581460,40.12,165.24,165.22,6.0528]
[1746775581662,40.12,165.24,165.18,1.0]
[1746775582060,40.12,165.24,165.23,6.0524]
[1746775582262,40.24,165.25,165.18,1.0]
[1746775582457,523.1,165.28,165.18,1.0]
[1746775582662,523.1,165.28,165.18,41.14]
[1746775582862,523.1,165.28,165.27,6.051]
[1746775583260,40.14,165.3,165.2,9.50388762]
[1746775583462,40.14,165.34,165.21,3.8813]
[1746775583656,40.14,165.34,165.22,40.12]
[1746775583862,40.14,165.34,165.22,42.1696]
[1746775584061,6.0492,165.32,165.26,6.0513]
[1746775584465,6.0492,165.32,165.22,42.1696]
[1746775584865,6.0496,165.31,165.24,6.0518]
[1746775585060,40.14,165.34,165.22,42.1696]
[1746775585061,40.14,165.34,165.22,2.0496]
[1746775586157,319.105,165.33,165.22,2.0496]
[1746775586362,9.50388762,165.31,165.19,6.0538]
[1746775586560,40.1,165.3,165.18,1.0]
[1746775586868,9.50388762,165.27,165.18,1.0]
[1746775587064,40.14,165.29,165.18,1.0]
[1746775587264,9.50388762,165.28,165.18,1.0]
[1746775587665,6.0528,165.22,165.18,1.0]
[1746775588069,40.14,165.23,165.18,1.0]
[1746775588366,46.1925,165.23,165.18,1.0]
[1746775588569,40.14,165.23,165.18,1.0]
[1746775589467,40.14,165.23,165.18,7.054]
[1746775590167,6.0528,165.22,165.18,1.0]
[1746775591667,6.0532,165.21,165.18,1.0]
[1746775591968,40.14,165.23,165.18,1.0]
[1746775593366,6.0534,165.21,165.18,1.0]
[1746775593566,40.14,165.23,165.18,1.0]
[1746775595861,6.0538,165.2,165.18,1.0]
[1746775596767,6.0539,165.19,165.18,1.0]
[1746775596968,40.14,165.23,165.18,1.0]
[1746775597877,6.0539,165.19,165.18,1.0]
[1746775602481,6.0539,165.19,165.14,0.5382]
[1746775602482,6.0554,165.15,165.14,0.5382]
[1746775602678,46.1954,165.15,165.14,0.5382]
[1746775603078,6.0568,165.11,165.07,6.0582]
[1746775603272,6.0568,165.11,165.02,5.7427]
[1746775603581,6.0574,165.1,165.02,5.7427]
[1746775603983,6.0574,165.1,165.05,6.0587]
[1746775604182,6.0572,165.11,165.02,5.7427]
[1746775604784,6.0572,165.1,165.02,5.7427]
[1746775604979,40.04,165.13,165.02,5.7427]
[1746775605183,40.04,165.1,165.06,6.0586]
[1746775606379,40.04,165.1,165.07,6.0583]
[1746775606580,40.04,165.1,165.02,5.7427]
[1746775606981,319.105,165.18,165.02,5.7427]
[1746775607185,6.0558,165.14,165.02,5.7427]
[1746775607385,80.08,165.17,165.08,6.0577]
[1746775607585,80.08,165.17,165.02,5.7427]
[1746775607787,6.0562,165.13,165.02,5.7427]
[1746775608085,46.0962,165.13,165.02,5.7427]
[1746775608386,6.0565,165.12,165.02,5.7427]
[1746775608583,6.0565,165.12,165.07,6.0582]
[1746775608988,6.0565,165.12,165.02,5.7427]
[1746775609182,6.0569,165.11,165.02,5.7427]
[1746775609686,6.0565,165.12,165.08,6.0579]
[1746775609984,40.04,165.13,165.02,5.7427]
[1746775610387,40.04,165.13,165.05,6.0588]
[1746775610584,40.02,165.12,165.02,5.7427]
[1746775610785,6.0578,165.09,165.05,6.059]
[1746775611384,6.0578,165.09,165.05,6.0587]
[1746775611881,40.02,165.12,165.02,5.7427]
[1746775612788,46.0766,165.12,165.08,6.0579]
[1746775612986,40.02,165.12,165.02,5.7427]
[1746775613192,6.0569,165.11,165.07,6.058]
[1746775613692,6.0572,165.1,165.06,6.0585]
[1746775614090,40.02,165.12,165.06,6.0585]
[1746775614389,6.0569,165.11,165.06,6.0585]
[1746775614585,40.02,165.12,165.02,5.7427]
[1746775615188,40.02,165.12,165.06,6.0584]
[1746775615992,40.02,165.12,165.07,6.0583]
[1746775616293,40.02,165.12,165.02,5.7427]
[1746775616687,40.02,165.12,165.08,6.0576]
[1746775617489,40.04,165.13,165.02,5.7427]
[1746775617789,40.06,165.13,165.02,5.7427]
[1746775617994,40.06,165.13,165.12,6.0562]
[1746775618194,40.0,165.15,165.05,40.0]
[1746775618493,80.06,165.17,165.05,40.0]
[1746775620094,80.04,165.17,165.05,40.0]
[1746775620294,86.0947,165.17,165.05,40.0]
[1746775620495,80.04,165.17,165.05,40.0]
[1746775620792,80.04,165.17,165.05,80.06]
[1746775621393,86.0949,165.17,165.05,80.06]
[1746775621592,80.04,165.17,165.05,80.06]
[1746775621891,6.0554,165.15,165.12,6.0561]
[1746775622087,80.04,165.17,165.02,5.7427]
[1746775622493,6.0555,165.15,165.12,6.0564]
[1746775622895,851.78888762,165.19,165.02,5.7427]
[1746775623099,39.96,165.15,165.12,6.0562]
[1746775623396,39.96,165.15,165.03,12.1195]
[1746775623795,39.96,165.15,165.14,6.0557]
[1746775624303,40.06,165.18,165.17,6.0544]
[1746775624492,40.06,165.24,165.12,9.50388762]
[1746775624795,40.06,165.24,165.13,6.0862]
[1746775625388,40.06,165.24,165.17,6.0543]
[1746775625593,40.06,165.24,165.13,6.0862]
[1746775625899,6.0529,165.22,165.13,6.0862]
[1746775626195,40.06,165.24,165.13,6.0862]
[1746775626597,6.0531,165.22,165.19,6.0538]
[1746775626797,40.06,165.24,165.19,6.0538]
[1746775627598,6.0527,165.23,165.18,6.0542]
[1746775628099,40.06,165.24,165.2,6.0534]
[1746775629199,46.1122,165.24,165.19,7.0538]
[1746775629398,40.06,165.24,165.19,7.0538]
[1746775629599,40.06,165.24,165.19,1.0]
[1746775629800,6.0525,165.23,165.19,1.0]
[1746775630004,49.56388762,165.24,165.19,1.0]
[1746775630808,6.0529,165.22,165.19,1.0]
[1746775631902,6.0532,165.21,165.19,1.0]
[1746775632099,49.42388762,165.2,165.08,1.9922]
[1746775632297,9.50388762,165.16,165.05,3.8658]
[1746775632498,359.005,165.15,165.05,3.8658]
[1746775632706,40.04,165.14,165.05,3.8658]
[1746775633106,40.04,165.14,165.11,6.0566]
[1746775634005,319.105,165.15,165.05,3.8658]
[1746775634205,39.88,165.14,165.05,3.8658]
[1746775634704,39.88,165.14,165.13,6.0561]
[1746775637207,39.88,165.14,165.12,6.0563]
[1746775637407,39.88,165.14,165.05,3.8658]
[1746775637604,39.88,165.14,165.03,1.9922]
[1746775637905,6.0565,165.12,165.03,1.9922]
[1746775638114,39.88,165.11,165.08,6.0577]
[1746775638311,39.88,165.11,165.03,1.9922]
[1746775638707,39.88,165.11,165.07,6.058]
[1746775638912,39.88,165.11,165.03,1.9922]
[1746775639108,45.9368,165.11,165.03,1.9922]
[1746775639508,39.88,165.11,165.03,1.9922]
[1746775640211,39.88,165.11,165.08,6.0577]
[1746775640510,39.88,165.11,165.03,1.9922]
[1746775640711,39.88,165.11,165.0,3.8639]
[1746775641705,39.88,165.11,165.05,6.0587]
[1746775642013,6.0578,165.09,165.0,3.8639]
[1746775642206,39.9,165.08,165.07,6.0583]
[1746775643211,39.9,165.08,165.0,3.8639]
[1746775643809,39.9,165.08,165.06,6.0584]
[1746775644310,39.9,165.08,165.0,3.8639]
[1746775644507,39.9,165.08,165.05,6.059]
[1746775644909,39.9,165.08,164.94,39.9]
[1746775645208,533.02388762,165.07,164.95,4.0167]
[1746775645512,6.0601,165.02,164.96,6.0622]
[1746775645712,39.9,165.02,164.96,6.0622]
[1746775645913,39.9,165.02,164.89,3.9746]
[1746775646114,39.84,165.01,164.94,6.0628]
[1746775646309,39.84,165.01,164.89,3.9746]
[1746775646511,319.105,165.0,164.89,3.9746]
[1746775646711,319.105,165.0,164.93,6.0631]
[1746775646910,328.60888762,164.99,164.85,6.76876891]
[1746775647114,6.0621,164.97,164.85,6.76876891]
[1746775647317,603.24,164.96,164.85,6.76876891]
[1746775648414,328.60888762,164.95,164.85,6.76876891]
[1746775648715,319.105,164.95,164.85,6.76876891]
[1746775649212,319.105,164.95,164.93,6.0633]
[1746775649414,319.105,164.95,164.85,6.76876891]
[1746775649614,319.105,164.94,164.71,51.9629]
[1746775649816,326.2613345,164.93,164.77,3.8953]
[1746775650014,326.2613345,164.93,164.77,1.9978]
[1746775650015,9.50388762,164.91,164.77,1.9978]
[1746775650214,79.74,164.9,164.72,13.32168762]
[1746775650411,319.105,164.89,164.73,1.9978]
[1746775650616,319.105,164.89,164.78,6.0689]
[1746775650815,319.105,164.88,164.73,1.9978]
[1746775651017,325.1703,164.88,164.78,6.0686]
[1746775651314,319.105,164.88,164.78,6.0686]
[1746775651515,319.105,164.88,164.73,1.9978]
[1746775652115,6.0659,164.87,164.79,6.0682]
[1746775652413,6.0659,164.87,164.73,1.9978]
[1746775652812,319.105,164.88,164.73,1.9978]
[1746775652813,6.0663,164.86,164.73,1.9978]
[1746775653011,319.105,164.88,164.73,41.9178]
[1746775653212,79.74,164.87,164.76,9.50388762]
[1746775653412,79.74,164.87,164.76,49.32388762]
[1746775653817,319.105,164.88,164.76,49.32388762]
[1746775654414,39.94,164.9,164.8,9.50388762]
[1746775654617,39.94,164.9,164.81,5.9816]
[1746775654815,39.94,164.9,164.86,6.0659]
[1746775656020,46.0046,164.9,164.84,6.0665]
[1746775656205,39.94,164.9,164.81,5.9816]
[1746775656407,39.94,164.9,164.84,6.0664]
[1746775656408,46.0045,164.9,164.84,6.0664]
[1746775657119,46.0045,164.9,164.85,6.066]
[1746775657417,39.94,164.9,164.81,5.9816]
[1746775657619,39.94,164.9,164.81,45.7816]
[1746775657916,39.94,164.9,164.88,6.0652]
[1746775658314,39.94,164.9,164.87,6.0656]
[1746775658718,39.94,164.9,164.81,5.9816]
[1746775659825,39.94,164.9,164.88,6.065]
[1746775660119,39.94,164.9,164.81,5.9816]
[1746775660922,319.105,164.95,164.91,6.064]
[1746775661118,39.94,164.94,164.81,5.9816]
[1746775661519,6.0637,164.93,164.81,5.9816]
[1746775661914,39.94,164.94,164.81,5.9816]
[1746775662720,46.0031,164.94,164.89,6.0646]
[1746775663223,39.94,164.94,164.81,5.9816]
[1746775663421,39.94,164.94,164.89,6.0648]
[1746775663614,39.94,164.94,164.81,5.9816]
[1746775663818,39.94,164.94,164.89,6.0646]
[1746775664020,39.94,164.94,164.81,5.9816]
[1746775664423,39.94,164.94,164.9,6.0643]
[1746775665225,46.0031,164.94,164.89,6.0648]
[1746775665423,39.94,164.94,164.81,5.9816]
[1746775665823,39.94,164.94,164.9,6.0645]
[1746775666326,39.94,164.94,164.91,6.0642]
[1746775666630,39.94,164.94,164.81,5.9816]
[1746775666921,46.0031,164.94,164.81,5.9816]
[1746775667122,46.0031,164.94,164.89,6.0646]
[1746775667318,39.94,164.94,164.81,5.9816]
[1746775667928,39.94,164.94,164.9,6.0643]
[1746775669424,39.94,164.94,164.88,6.065]
[1746775669628,39.94,164.94,164.81,5.9816]
[1746775669923,6.0643,164.91,164.86,6.0657]
[1746775670119,6.0643,164.91,164.81,5.9816]
[1746775670318,39.94,164.94,164.81,4.0201]
[1746775670319,39.7,164.9,164.81,4.0201]
[1746775670521,39.7,164.9,164.81,6.0675]
[1746775670522,39.74,164.89,164.81,6.0675]
[1746775671027,6.0657,164.87,164.76,2.0891]
[1746775671424,6.0654,164.88,164.76,2.0891]
[1746775671627,358.845,164.89,164.76,2.0891]
[1746775671925,319.105,164.89,164.76,2.0891]
[1746775672229,39.74,164.92,164.79,9.50388762]
[1746775672416,39.74,164.92,164.8,79.42]
[1746775673123,39.74,164.92,164.81,1.9743]
[1746775673323,39.74,164.92,164.82,1.9821]
[1746775673826,39.74,164.92,164.83,2.0723]
[1746775674327,39.68,164.93,164.83,2.0723]
[1746775674328,523.52,164.96,164.83,11.57618762]
[1746775674520,79.42,164.95,164.83,11.57618762]
[1746775675029,79.42,164.95,164.89,6.0646]
[1746775675324,79.42,164.95,164.83,11.57618762]
[1746775675325,85.4829,164.95,164.83,11.57618762]
[1746775675517,85.4829,164.95,164.89,6.0646]
[1746775675827,6.0631,164.94,164.89,6.0646]
[1746775676029,39.74,164.95,164.83,11.57618762]
[1746775676826,39.74,164.95,164.91,6.0639]
[1746775677029,39.74,164.95,164.86,39.64]
[1746775677323,39.74,164.95,164.87,9.50388762]
[1746775677523,524.18,165.06,164.88,1.9839]
[1746775677724,39.74,165.05,164.99,6.0611]
[1746775677922,79.38,165.05,164.99,6.0611]
[1746775678119,85.4391,165.05,164.92,43.7834]
[1746775678323,79.38,165.05,164.92,43.7834]
[1746775679829,6.0595,165.04,164.92,43.7834]
[1746775680025,79.38,165.05,164.92,4.1434]
[1746775680226,6.0609,165.0,164.92,4.1434]
[1746775680727,6.0606,165.01,164.92,4.1434]
[1746775680921,39.74,165.05,164.92,4.1434]
[1746775681126,39.74,165.11,164.95,9.50388762]
[1746775681328,39.74,165.1,164.99,9.50388762]
[1746775681633,39.74,165.1,165.0,3.8904]
[1746775682329,45.7972,165.1,165.04,6.0591]
[1746775682528,39.74,165.1,165.0,3.8904]
[1746775683124,39.74,165.1,165.0,1.9925]
[1746775683329,39.74,165.1,164.96,41.6289]
[1746775683632,39.74,165.1,164.96,43.568]
[1746775683828,6.0586,165.07,165.03,6.0597]
[1746775684029,39.74,165.1,164.96,45.4824]
[1746775684231,6.058,165.08,165.03,6.0595]
[1746775684432,39.74,165.1,164.96,45.4824]
[1746775684830,6.0589,165.06,165.01,6.0602]
[1746775685026,39.74,165.1,165.01,6.0602]
[1746775685628,39.74,165.1,164.96,45.4824]
[1746775685828,39.74,165.1,164.96,5.9024]
[1746775686029,39.74,165.1,165.02,6.0601]
[1746775686329,39.74,165.1,164.96,5.9024]
[1746775686530,6.058,165.08,165.02,6.0599]
[1746775686733,39.74,165.1,164.96,5.9024]
[1746775687033,6.058,165.08,164.96,5.9024]
[1746775687233,39.74,165.1,164.96,5.9024]
[1746775688935,39.52,165.09,165.06,6.0584]
[1746775689139,39.52,165.09,164.96,5.9024]
[1746775689333,39.74,165.1,164.96,5.9024]
[1746775689528,79.26,165.1,164.96,5.9024]
[1746775691037,79.24,165.1,164.96,5.9024]
[1746775691538,6.0586,165.07,164.96,6.9024]
[1746775691838,79.24,165.1,164.96,6.9024]
[1746775692136,6.0594,165.04,165.0,6.0608]
[1746775692340,39.72,165.04,164.96,1.0]
[1746775692537,6.0607,165.01,164.96,1.0]
[1746775692736,39.72,165.04,164.96,1.0]
[1746775692936,45.7795,165.04,165.0,6.0608]
[1746775693243,45.7795,165.04,164.96,1.0]
[1746775693244,39.72,165.04,164.96,1.0]
[1746775694040,39.72,165.04,164.98,6.0612]
[1746775694542,6.0612,165.0,164.96,1.0]
[1746775694744,39.46,164.99,164.96,1.0]
[1746775695136,39.46,164.99,164.96,0.9777]
[1746775696450,39.46,164.98,164.96,0.9777]
[1746775696841,39.46,164.98,164.96,7.0398]
[1746775697140,39.46,164.98,164.96,0.9777]
[1746775698042,39.46,164.98,164.97,6.062]
[1746775698343,39.46,164.98,164.96,0.9777]
[1746775701445,6.062,164.97,164.96,0.9777]
[1746775701646,39.46,164.98,164.85,4.138]
[1746775701844,358.565,164.98,164.85,4.138]
[1746775702045,6.0631,164.94,164.85,4.138]
[1746775702248,45.5231,164.94,164.85,4.138]
[1746775704246,45.5231,164.94,164.9,6.0643]
[1746775704948,39.46,164.94,164.91,6.0641]
[1746775705541,45.5231,164.94,164.9,6.0644]
[1746775705746,39.46,164.94,164.9,6.0644]
[1746775706447,45.5233,164.94,164.9,6.0644]
[1746775706746,39.46,164.94,164.84,1.9353]
[1746775706953,39.38,164.93,164.81,3.9201]
[1746775707245,39.38,164.93,164.87,6.0656]
[1746775707547,6.0644,164.91,164.81,3.9201]
[1746775707745,39.38,164.93,164.81,3.9201]
[1746775707940,39.38,164.93,164.81,1.951]
[1746775708649,6.0642,164.91,164.81,1.951]
[1746775708949,39.38,164.93,164.81,1.951]
[1746775709142,6.0641,164.92,164.81,1.951]
[1746775709445,39.38,164.93,164.81,1.951]
[1746775710348,6.0645,164.91,164.81,1.951]
[1746775710549,39.38,164.93,164.81,1.951]
[1746775710848,6.0647,164.9,164.81,1.951]
[1746775711056,39.48,164.89,164.81,1.951]
[1746775711551,39.48,164.89,164.88,6.0653]
[1746775713946,39.48,164.89,164.81,1.951]
[1746775714252,45.5449,164.89,164.81,1.951]
[1746775714447,45.5449,164.89,164.84,6.0664]
[1746775714642,39.48,164.89,164.81,1.951]
[1746775714945,6.0655,164.88,164.81,1.951]
[1746775715453,39.3,164.88,164.81,1.951]
[1746775715644,39.3,164.88,164.85,6.0663]
[1746775716446,39.3,164.88,164.86,6.066]
[1746775717246,530.0234,164.94,164.81,1.951]
[1746775717451,78.78,164.93,164.81,1.951]
[1746775718453,84.8435,164.93,164.81,1.951]
[1746775718847,78.78,164.93,164.81,1.951]
[1746775719054,6.0638,164.92,164.81,1.951]
[1746775719243,78.78,164.93,164.81,1.951]
[1746775719446,6.0644,164.91,164.87,6.0653]
[1746775719646,78.78,164.93,164.81,1.951]
[1746775720053,6.0648,164.9,164.87,6.0655]
[1746775720654,6.0643,164.91,164.87,6.0655]
[1746775721152,6.0643,164.91,164.88,6.0652]
[1746775721352,6.0639,164.92,164.88,6.0652]
[1746775721653,78.78,164.93,164.87,6.0655]
[1746775722051,6.0644,164.91,164.87,6.0655]
[1746775722249,78.78,164.93,164.81,1.951]
[1746775722753,78.78,164.93,164.86,6.0657]
[1746775722954,78.78,164.93,164.81,1.951]
[1746775723152,6.0652,164.89,164.81,1.951]
[1746775723354,39.5,164.88,164.81,1.951]
[1746775723750,84.7855,164.88,164.81,1.951]
[1746775723951,78.72,164.88,164.84,6.0665]
[1746775724454,78.72,164.88,164.85,6.0662]
[1746775725056,78.72,164.88,164.86,6.066]
[1746775725949,6.0643,164.91,164.87,6.0656]
[1746775726156,78.4,164.9,164.81,1.951]
[1746775726555,78.4,164.9,164.88,6.0651]
[1746775726750,78.4,164.9,164.81,1.951]
[1746775727055,39.2,164.9,164.81,1.951]
[1746775728351,39.2,164.9,164.89,6.0649]
[1746775728657,39.2,164.98,164.89,6.06]
[1746775728858,78.38,164.99,164.98,6.0616]
[1746775729053,78.38,164.99,164.9,4.0787]
[1746775729350,39.2,164.99,164.9,4.0787]
[1746775729557,45.2615,164.99,164.9,4.0787]
[1746775729753,39.2,164.99,164.9,4.0787]
[1746775729956,6.0616,164.98,164.95,6.0627]
[1746775730257,39.2,164.99,164.9,4.0787]
[1746775730756,39.2,164.99,164.96,6.0621]
[1746775730954,39.2,164.99,164.9,4.0787]
[1746775732064,524.2,165.02,165.0,6.0608]